bitfinex-derivatives/quotes_ETHF0:USTF0_20251028
["timestamp","ask_amount","ask_price","bid_price","bid_amount"]
[1761623193374,0.00206254,4093.8,4093.7,2.38682786]
[1761623193968,0.3431,4094.2,4094.1,1.12256]
[1761623194175,0.3431,4094.2,4094.1,2.38387999]
[1761623194567,0.1297,4094.5,4094.4,0.43963]
[1761623194773,0.3591,4094.5,4094.4,2.41605315]
[1761623195072,0.34304669,4094.5,4094.4,1.10123]
[1761623195375,0.34304669,4094.5,4094.4,2.41489259]
[1761623196274,0.34304669,4094.5,4094.4,1.10123]
[1761623196473,0.34304669,4094.5,4094.4,2.4138429]
[1761623196874,0.00244669,4094.5,4094.4,2.36254999]
[1761623197379,0.00244669,4094.5,4094.4,3.67431379]
[1761623197777,0.00244669,4094.5,4094.4,2.36254999]
[1761623199068,0.00244669,4094.5,4094.4,1.10123]
[1761623199576,41.23952,4095.4,4094.8,1.10119]
[1761623199577,0.3406,4094.9,4094.8,1.10119]
[1761623199775,0.3406,4094.9,4094.8,2.36250999]
[1761623199972,0.7793,4094.9,4094.8,1.47171999]
[1761623200272,0.57,4094.9,4094.8,1.69241999]
[1761623200479,0.3406,4094.9,4094.8,1.92291999]
[1761623200672,0.3406,4095.1,4095.0,1.10116]
[1761623200874,0.34305163,4095.1,4095.0,1.10116]
[1761623204477,0.00245163,4095.1,4095.0,1.19666]
[1761623204777,0.34305163,4095.1,4095.0,1.10116]
[1761623204977,0.00245163,4095.1,4095.0,1.10116]
[1761623205872,0.34305163,4095.1,4095.0,1.10116]
[1761623206077,0.78175163,4095.1,4095.0,1.69241999]
[1761623206283,0.4387,4094.6,4094.5,0.65002]
[1761623206481,0.7793,4094.6,4094.5,1.91133999]
[1761623207084,0.7793,4094.6,4094.5,2.13203999]
[1761623209082,0.7793,4094.6,4094.5,2.36253999]
[1761623211587,0.4764,4095.0,4094.9,1.10118]
[1761623211787,0.3406,4095.0,4094.9,2.36249999]
[1761623211990,0.7058,4095.0,4094.9,0.87068]
[1761623212185,0.7058,4095.0,4094.9,2.13199999]
[1761623212792,0.7058,4095.0,4094.9,2.36249999]
[1761623214785,0.00245163,4095.1,4095.0,0.43956]
[1761623214990,0.00245163,4095.1,4095.0,1.19666]
[1761623215191,0.57245163,4095.1,4095.0,2.13197999]
[1761623215386,0.34305163,4095.1,4095.0,2.36247999]
[1761623215591,0.00245163,4095.1,4095.0,5.46431023]
[1761623218293,0.00245163,4095.1,4095.0,6.77457257]
[1761623219398,0.00245163,4095.1,4095.0,5.46431023]
[1761623222987,0.00245163,4095.1,4095.0,7.22058604]
[1761623224392,0.00245163,4095.1,4095.0,5.46431023]
[1761623225993,0.00245163,4095.1,4095.0,5.25239968]
[1761623227093,0.00245163,4095.1,4094.7,6.09871016]
[1761623227094,0.4515,4095.0,4094.9,1.75582634]
[1761623227297,0.8989,4095.0,4094.9,1.04940944]
[1761623227994,0.8989,4095.0,4094.7,1.75582634]
[1761623228193,0.7732,4094.7,4094.6,1.04940944]
[1761623228395,1.21279,4094.7,4094.6,2.36647677]
[1761623228593,1.21279,4094.7,4094.6,1.04940944]
[1761623228799,42.01279,4094.7,4094.6,0.54436868]
[1761623229095,0.3258,4094.3,4094.2,1.31706733]
[1761623229307,1.21285,4094.2,4094.1,1.04940944]
[1761623229504,0.7732,4093.9,4093.8,1.04940944]
[1761623229796,0.7732,4093.9,4093.8,1.27960944]
[1761623229989,0.7732,4093.9,4093.8,1.71860944]
[1761623230191,41.3467,4093.9,4093.8,3.03567677]
[1761623230790,0.5467,4093.9,4093.8,3.03567677]
[1761623231191,0.7732,4093.9,4093.8,2.80547677]
[1761623231502,0.7732,4093.9,4093.8,1.48840944]
[1761623232700,0.7732,4093.9,4093.8,1.48281896]
[1761623235400,0.5467,4093.9,4093.8,1.71301896]
[1761623236002,0.3258,4094.2,4094.1,0.6692]
[1761623236202,0.3258,4094.2,4094.1,1.71860944]
[1761623236504,0.7732,4094.2,4094.1,1.48840944]
[1761623237305,0.7732,4094.2,4094.1,1.27960944]
[1761623237506,1.21285,4094.2,4094.1,1.04940944]
[1761623238101,0.43968,4093.9,4093.8,1.04940944]
[1761623238306,1.21289,4093.8,4093.7,0.00290787]
[1761623238701,42.01289,4093.8,4093.7,0.00290787]
[1761623241004,0.8989,4093.0,4092.9,1.48919944]
[1761623241504,0.8989,4093.0,4092.9,1.71939944]
[1761623241908,0.8989,4093.0,4092.9,1.72125284]
[1761623242205,0.8989,4093.0,4092.9,1.28146284]
[1761623243004,0.8989,4093.0,4092.9,1.05126284]
[1761623245303,1.33868,4093.0,4092.9,0.0018534]
[1761623246211,1.33868,4093.0,4092.3,1.04940944]
[1761623246212,1.21304,4092.4,4092.3,1.04940944]
[1761623246598,42.01304,4092.4,4092.3,1.04940944]
[1761623246802,0.7732,4092.1,4092.0,1.27960944]
[1761623247210,0.77525118,4092.1,4092.0,1.28269002]
[1761623248812,0.77525118,4092.1,4092.0,0.00308058]
[1761623249812,0.77525118,4092.1,4092.0,0.67317058]
[1761623250012,0.77525118,4092.1,4092.0,0.23328058]
[1761623255117,0.77525118,4092.1,4092.0,0.44208058]
[1761623255613,0.00205118,4092.1,4092.0,2.16147002]
[1761623256317,0.34425118,4092.1,4092.0,2.16147002]
[1761623256520,0.57085118,4092.1,4092.0,2.16147002]
[1761623257015,0.00205118,4092.1,4092.0,2.16147002]
[1761623257417,0.34425118,4092.1,4092.0,2.16147002]
[1761623262917,0.34425118,4092.1,4092.0,3.47853735]
[1761623264418,0.79365118,4092.1,4092.0,2.42912791]
[1761623264615,0.79365118,4092.1,4092.0,3.47853735]
[1761623265429,0.79365118,4092.1,4092.0,2.16147002]
[1761623265614,0.79365118,4092.1,4092.0,1.93137002]
[1761623266315,0.79365118,4092.1,4092.0,1.49149002]
[1761623266522,0.79365118,4092.1,4092.0,0.23328058]
[1761623267415,0.79365118,4092.1,4092.0,1.54796413]
[1761623267719,0.79365118,4092.1,4092.0,0.23328058]
[1761623267919,0.79365118,4092.1,4092.0,0.67316058]
[1761623268317,0.79365118,4092.1,4092.0,1.98784413]
[1761623269111,0.79365118,4092.1,4092.0,2.19674413]
[1761623269320,0.79365118,4092.1,4092.0,0.88206058]
[1761623270923,0.79365118,4092.1,4092.0,0.44218058]
[1761623271224,0.79365118,4092.1,4092.0,0.88206058]
[1761623272828,0.79365118,4092.1,4092.0,0.00308058]
[1761623273825,0.79365118,4092.1,4092.0,0.44296058]
[1761623275825,0.79365118,4092.1,4092.0,0.00308058]
[1761623277928,0.79365118,4092.1,4092.0,0.44296058]
[1761623278323,0.79365118,4092.1,4092.0,0.87956058]
[1761623279928,0.57085118,4092.1,4092.0,3.91489636]
[1761623280626,0.34425118,4092.1,4092.0,2.15907002]
[1761623281830,0.34425118,4092.1,4092.0,2.15908002]
[1761623282022,0.79365118,4092.1,4092.0,1.76135946]
[1761623282527,0.79365118,4092.1,4092.0,1.98905946]
[1761623284228,0.79365118,4092.1,4092.0,1.76135946]
[1761623284731,0.79365118,4092.1,4092.0,1.97815946]
[1761623285332,0.79365118,4092.1,4092.0,1.76135946]
[1761623285534,0.3192,4092.0,4091.7,1.65913656]
[1761623285723,0.1388,4091.0,4090.8,2.41751016]
[1761623285918,0.3192,4090.8,4090.6,2.41751016]
[1761623286130,0.7759,4090.8,4090.7,1.04940944]
[1761623286729,0.7759,4090.8,4090.7,1.05210781]
[1761623287733,0.7759,4090.8,4090.7,0.00269837]
[1761623288241,0.7759,4090.8,4090.7,1.31873808]
[1761623288420,0.1388,4091.0,4090.9,0.6639]
[1761623288421,0.325,4091.0,4090.9,0.6639]
[1761623288623,0.325,4091.0,4090.9,1.92628785]
[1761623288831,0.6708,4091.0,4090.9,1.92628785]
[1761623289033,0.6708,4091.0,4090.9,1.69588785]
[1761623289232,0.8936,4091.0,4090.9,0.4335]
[1761623289427,0.325,4090.7,4090.4,1.3156531]
[1761623289732,0.7608,4090.1,4090.0,1.3156531]
[1761623289931,0.8936,4090.0,4089.9,1.5354531]
[1761623290327,0.8936,4090.0,4089.9,0.2198]
[1761623290628,0.8936,4090.0,4089.9,1.48394698]
[1761623291425,0.8936,4090.0,4089.9,1.26414698]
[1761623291932,0.8936,4090.0,4089.9,0.00175913]
[1761623292433,0.7608,4089.2,4089.1,1.26238785]
[1761623292834,0.7608,4089.2,4089.1,1.25903356]
[1761623293428,0.8936,4089.0,4088.9,1.48218785]
[1761623293632,0.8936,4089.0,4088.9,1.48505097]
[1761623294030,0.4578,4089.0,4088.9,1.92915097]
[1761623294234,0.325,4089.0,4088.9,1.92915097]
[1761623294631,0.538,4089.0,4088.9,1.92915097]
[1761623294839,0.6708,4089.0,4088.9,1.92915097]
[1761623295533,0.8936,4089.0,4088.9,1.26525097]
[1761623295732,0.8936,4089.0,4088.9,1.48505097]
[1761623296130,0.8936,4089.0,4088.9,1.69875097]
[1761623297039,0.8936,4089.0,4088.9,1.92915097]
[1761623298240,0.00182943,4089.2,4089.1,0.6639]
[1761623298637,0.538,4089.9,4089.8,0.4335]
[1761623298840,0.7608,4089.9,4089.8,1.69588785]
[1761623299538,0.76312016,4089.9,4089.8,1.69588785]
[1761623299945,0.4358,4089.7,4089.6,1.48218785]
[1761623300240,0.7608,4089.7,4089.6,1.48218785]
[1761623300441,0.5478,4089.3,4089.2,1.48218785]
[1761623300638,0.7608,4089.3,4089.2,1.48218785]
[1761623301036,0.8936,4089.0,4088.9,0.22266312]
[1761623301237,0.8936,4089.0,4088.9,1.48505097]
[1761623301546,0.8936,4089.0,4088.9,1.69875097]
[1761623305244,0.8936,4089.0,4088.9,2.13896097]
[1761623305547,41.6936,4089.0,4088.9,2.13896097]
[1761623305839,41.4708,4089.0,4088.9,2.13896097]
[1761623306043,0.325,4089.4,4089.3,1.10407]
[1761623306347,0.538,4089.5,4089.4,0.6639]
[1761623306546,0.6708,4089.5,4089.4,0.4335]
[1761623306748,0.4578,4089.5,4089.4,1.10407]
[1761623306946,0.325,4089.5,4089.4,1.10407]
[1761623307245,0.8936,4089.5,4089.4,0.87367]
[1761623309544,40.8,4089.8,4089.3,1.26238785]
[1761623309545,0.325,4089.7,4089.6,1.10403]
[1761623309745,0.538,4089.7,4089.6,1.10403]
[1761623310046,0.7608,4089.7,4089.6,0.87363]
[1761623312051,40.8,4089.8,4089.7,0.67053]
[1761623312348,0.325,4089.8,4089.7,2.36641785]
[1761623312548,0.538,4089.8,4089.7,1.92628785]
[1761623312850,0.538,4089.8,4089.7,2.36640785]
[1761623314446,0.1328,4090.5,4090.4,1.09895]
[1761623314447,0.3414,4090.5,4090.4,1.09895]
[1761623314643,0.3414,4090.5,4090.4,2.36133785]
[1761623315342,0.34311103,4090.5,4090.4,3.67530464]
[1761623316047,0.91031103,4090.5,4090.4,3.44500464]
[1761623316248,0.91031103,4090.5,4090.4,3.01640464]
[1761623316544,0.91031103,4090.5,4090.4,1.26238785]
[1761623317447,0.91031103,4090.5,4090.4,1.70243785]
[1761623317652,0.91031103,4090.5,4090.4,1.26238785]
[1761623319354,41.71031103,4090.5,4090.4,2.57635464]
[1761623319644,1.21785,4090.4,4090.3,1.31396679]
[1761623319845,0.7778,4090.2,4090.1,1.31396679]
[1761623320046,0.7778,4089.9,4089.8,1.31396679]
[1761623320440,0.3414,4089.8,4089.7,1.31396679]
[1761623320643,0.3414,4089.8,4089.6,1.26238785]
[1761623320644,0.7778,4089.7,4089.6,2.57635464]
[1761623320853,41.5778,4089.7,4089.6,2.57635464]
[1761623321554,41.5778,4089.7,4089.6,2.78595464]
[1761623321753,41.5778,4089.7,4089.6,3.00495464]
[1761623323151,41.5778,4089.7,4089.6,2.57635464]
[1761623323640,41.5778,4089.7,4089.6,2.78595464]
[1761623323846,41.5778,4089.7,4089.6,2.57635464]
[1761623324046,41.5778,4089.7,4089.6,1.26238785]
[1761623324851,41.5778,4089.7,4089.6,1.70252785]
[1761623325056,41.5778,4089.7,4089.6,1.91212785]
[1761623325448,41.5778,4089.7,4089.6,3.22609464]
[1761623327160,41.5778,4089.7,4089.6,2.78595464]
[1761623327354,41.5778,4089.7,4089.6,2.57635464]
[1761623329658,41.5778,4089.7,4089.6,3.01648464]
[1761623330856,41.5778,4089.7,4089.6,3.22608464]
[1761623331059,0.7778,4089.7,4089.6,2.13111785]
[1761623331561,0.7778,4089.7,4089.6,1.69098785]
[1761623331860,0.7778,4089.7,4089.6,1.47198785]
[1761623332964,0.7778,4089.7,4089.6,1.26238785]
[1761623333758,0.7778,4089.7,4089.6,1.91212785]
[1761623334453,0.7778,4089.7,4089.6,1.26238785]
[1761623334959,0.7778,4089.7,4089.6,1.70252785]
[1761623335160,0.7778,4089.7,4089.6,1.91212785]
[1761623335360,0.7778,4089.7,4089.6,1.47198785]
[1761623338258,0.7778,4089.7,4089.6,1.26238785]
[1761623339065,0.7778,4089.4,4089.2,3.45030958]
[1761623339361,0.7778,4089.3,4089.2,3.65990958]
[1761623339756,0.7778,4089.3,4089.2,3.65991958]
[1761623339954,0.3414,4089.3,4089.2,4.10921958]
[1761623340266,0.3414,4089.3,4089.2,2.36146785]
[1761623340454,0.5587,4089.3,4089.2,2.36146785]
[1761623340659,0.7778,4089.3,4089.2,2.13116785]
[1761623341664,0.5587,4089.3,4089.2,2.36146785]
[1761623341857,0.4722,4089.5,4089.4,1.09906]
[1761623342161,0.3414,4089.5,4089.4,2.85570555]
[1761623342362,0.5587,4089.9,4089.8,0.4286]
[1761623342556,0.7778,4089.9,4089.8,3.00846776]
[1761623342756,41.5778,4089.9,4089.8,3.00846776]
[1761623343566,41.5778,4089.9,4089.8,2.78946776]
[1761623343862,42.0179,4089.9,4089.8,2.57986776]
[1761623344065,0.7778,4089.7,4089.5,1.22105104]
[1761623344267,0.8825,4089.0,4088.9,0.00286312]
[1761623344561,1.3227,4089.0,4088.9,0.00286312]
[1761623344759,1.3227,4089.0,4087.9,25.47309801]
[1761623344760,0.7486,4088.2,4088.1,1.75664555]
[1761623344956,41.5486,4088.2,4088.1,2.20954555]
[1761623345155,41.5486,4088.2,4088.1,0.4529]
[1761623345467,0.7486,4088.2,4088.1,0.4529]
[1761623345667,0.7486,4088.2,4088.1,0.45585979]
[1761623346064,41.5486,4088.2,4088.1,0.45585979]
[1761623347660,41.5486,4088.2,4088.1,0.00295979]
[1761623349363,41.5486,4088.2,4088.1,0.23355979]
[1761623349555,41.5486,4088.2,4088.1,0.68095979]
[1761623349758,0.5515,4088.4,4088.3,0.4474]
[1761623349960,0.5515,4088.4,4088.3,0.88767]
[1761623350163,0.5515,4088.4,4088.3,1.11827]
[1761623350360,41.3515,4088.4,4088.3,1.11827]
[1761623351469,41.3515,4088.4,4088.3,0.4474]
[1761623351664,41.3515,4088.4,4088.1,1.05583969]
[1761623351665,0.2177,4088.2,4088.1,1.49612969]
[1761623351969,0.7692,4088.2,4088.1,1.49613969]
[1761623352169,0.7692,4088.2,4088.1,1.72673969]
[1761623352860,0.7692,4088.2,4088.1,1.72472712]
[1761623354273,0.7692,4088.2,4088.1,1.94152712]
[1761623357268,0.1339,4089.0,4088.9,0.67081]
[1761623357269,0.336,4089.0,4088.9,0.67081]
[1761623357569,0.5515,4089.4,4089.3,0.88758]
[1761623357771,0.5515,4089.4,4089.3,1.9404499]
[1761623357772,41.3515,4089.4,4089.3,1.9404499]
[1761623359765,41.3515,4089.4,4089.3,1.5002799]
[1761623360167,41.136,4089.4,4089.3,3.2239298]
[1761623360375,0.336,4089.4,4089.3,3.2239298]
[1761623362177,0.7692,4089.4,4089.3,1.9404499]
[1761623362882,0.336,4089.8,4089.7,0.678]
[1761623363070,0.5515,4089.8,4089.7,1.7308799]
[1761623363264,0.5515,4089.8,4089.7,1.5002799]
[1761623363977,0.336,4089.8,4089.7,1.92765466]
[1761623365078,0.336,4089.8,4089.7,2.36777466]
[1761623365277,0.5515,4089.8,4089.7,2.1709999]
[1761623365577,0.5515,4089.8,4089.7,1.9403999]
[1761623366076,0.5515,4089.8,4089.7,2.1709999]
[1761623366379,0.336,4089.8,4089.7,2.1709999]
[1761623366681,40.8,4090.2,4090.0,0.2306]
[1761623366869,40.8,4090.2,4090.1,1.9403599]
[1761623367280,41.136,4090.2,4090.1,1.5002799]
[1761623367484,41.136,4090.2,4090.1,1.0528799]
[1761623368676,0.9068,4090.0,4089.9,1.0528799]
[1761623369667,1.34689,4090.0,4089.9,1.0528799]
[1761623370578,0.9068,4090.0,4089.9,1.0528799]
[1761623372285,0.9068,4090.0,4089.9,1.4929899]
[1761623372976,0.9068,4089.5,4089.4,1.9848671]
[1761623373283,0.9068,4089.5,4089.4,3.254547]
[1761623373670,0.3531,4090.0,4089.9,0.44011]
[1761623373877,0.57251103,4090.5,4090.4,0.2306]
[1761623374079,0.00171103,4090.5,4090.4,3.2238198]
[1761623374283,0.00171103,4090.5,4090.4,2.1709399]
[1761623374582,0.33941103,4090.5,4090.4,3.48467617]
[1761623375289,0.33941103,4090.5,4090.4,2.1709399]
[1761623378383,0.91231103,4090.5,4090.4,1.5002799]
[1761623379281,0.91231103,4090.5,4090.4,1.9403399]
[1761623379782,0.91231103,4090.5,4090.4,1.5002799]
[1761623379980,0.91231103,4090.5,4090.4,1.0528799]
[1761623382283,0.91231103,4090.5,4090.4,1.2664799]
[1761623382485,0.91231103,4090.5,4090.4,1.7065399]
[1761623382781,0.91231103,4090.5,4090.4,1.9158399]
[1761623383287,0.91231103,4090.5,4090.4,3.22957617]
[1761623383478,0.91231103,4090.5,4090.4,1.9158399]
[1761623384089,0.91231103,4090.5,4090.4,3.22957617]
[1761623385285,0.91231103,4090.5,4090.4,1.9158399]
[1761623389384,0.91231103,4090.5,4090.4,1.4757799]
[1761623389588,0.91231103,4090.5,4090.4,1.0528799]
[1761623389790,0.91231103,4090.5,4090.4,1.2664799]
[1761623391083,0.91231103,4090.5,4090.4,1.7065399]
[1761623391585,0.91231103,4090.5,4090.0,0.2308]
[1761623391586,0.3377,4090.4,4090.0,1.75664555]
[1761623391777,0.3377,4090.0,4089.8,1.97024555]
[1761623391983,0.7813,4089.9,4089.8,2.41036555]
[1761623392687,0.7813,4089.9,4089.8,2.61966555]
[1761623394191,0.7813,4089.9,4089.8,2.17954555]
[1761623394387,0.7813,4089.9,4089.8,1.75664555]
[1761623394591,0.1293,4090.0,4088.9,3.29452747]
[1761623394592,1.22143,4089.7,4089.6,1.0528799]
[1761623394791,1.22143,4089.7,4089.6,2.37003172]
[1761623394982,0.44016,4089.5,4089.3,2.37003172]
[1761623395293,0.3377,4088.7,4088.6,2.37003172]
[1761623395489,0.7813,4088.7,4088.6,2.37003172]
[1761623396084,0.7813,4088.7,4088.6,1.0528799]
[1761623396693,41.5813,4088.7,4088.6,1.2664799]
[1761623401590,41.5813,4088.7,4088.6,1.0528799]
[1761623401993,0.7813,4088.2,4088.1,0.00094722]
[1761623402591,0.7813,4088.2,4088.1,0.44124722]
[1761623403201,0.7813,4088.2,4088.1,0.00094722]
[1761623408105,0.9147,4087.5,4087.4,2.37003172]
[1761623408299,0.9147,4087.5,4087.4,1.0528799]
[1761623408495,41.7147,4087.5,4087.4,1.0528799]
[1761623408998,41.7147,4087.5,4087.4,1.05507891]
[1761623409203,41.71713962,4087.5,4087.4,1.05507891]
[1761623409705,41.71713962,4087.5,4087.4,1.49545891]
[1761623410104,41.71713962,4087.5,4087.4,1.05507891]
[1761623410899,41.71713962,4087.5,4087.4,0.00219901]
[1761623411106,0.3471,4087.9,4087.8,0.67113]
[1761623411407,0.7761,4088.2,4088.1,0.4448]
[1761623411600,41.5761,4088.2,4088.1,0.4448]
[1761623411799,41.5761,4088.2,4088.1,2.14885799]
[1761623412206,41.57879859,4088.2,4088.1,1.47785799]
[1761623412504,41.57879859,4088.2,4087.4,0.00219901]
[1761623412505,0.1386,4088.0,4087.4,0.00219901]
[1761623412706,0.9147,4087.5,4087.4,0.00099148]
[1761623414006,0.9147,4087.5,4087.4,0.44136148]
[1761623414208,0.9147,4087.5,4087.4,0.00099148]
[1761623414809,0.9147,4087.5,4087.4,0.44137148]
[1761623416507,0.9147,4087.5,4087.4,0.65547148]
[1761623416706,0.9147,4087.5,4087.4,0.21509148]
[1761623417512,0.9147,4087.5,4087.4,0.65546148]
[1761623418510,0.9147,4087.5,4087.4,0.00099148]
[1761623419010,0.9147,4087.5,4087.4,0.44137148]
[1761623420912,0.9147,4087.5,4087.4,0.44136148]
[1761623423415,0.9147,4087.5,4087.4,0.00099148]
[1761623424316,0.9147,4087.5,4087.4,1.3181433]
[1761623424717,0.9147,4087.5,4087.4,0.00099148]
[1761623424919,0.9147,4087.5,4087.4,0.21509148]
[1761623425219,0.9147,4087.5,4087.4,1.11696148]
[1761623425727,0.3471,4087.5,4087.4,1.11696148]
[1761623426318,0.3471,4087.5,4087.4,2.87360703]
[1761623427515,0.5637,4087.5,4087.4,2.87360703]
[1761623427720,0.7023,4087.5,4087.4,2.87360703]
[1761623429614,0.3471,4087.5,4087.4,2.87360703]
[1761623430020,0.3471,4087.5,4087.4,1.11696148]
[1761623432521,0.7023,4087.5,4087.4,0.88617148]
[1761623432822,0.9147,4087.5,4087.4,0.88617148]
[1761623433119,0.9147,4087.5,4087.4,0.00099148]
[1761623433628,1.35507,4087.5,4087.4,0.00099148]
[1761623433925,1.35507,4087.5,4087.4,1.32011572]
[1761623434319,42.15507,4087.5,4087.4,0.00099148]
[1761623434822,42.15506,4087.5,4087.4,0.00099148]
[1761623437932,41.7147,4087.5,4087.4,0.00099148]
[1761623438230,42.15506,4087.5,4087.4,0.00099148]
[1761623440822,41.7147,4087.5,4087.4,0.00099148]
[1761623441029,41.7147,4087.5,4087.4,0.44137148]
[1761623441228,41.7147,4087.5,4087.4,0.00099148]
[1761623442230,42.15506,4087.5,4087.4,0.00099148]
[1761623443630,41.7147,4087.5,4087.4,0.00099148]
[1761623444832,42.15507,4087.5,4087.4,0.00099148]
[1761623445330,42.15507,4087.5,4087.4,1.32011572]
[1761623445528,0.44043,4086.9,4086.8,1.75837483]
[1761623445726,0.44043,4086.9,4086.1,3.02213282]
[1761623445727,0.4402,4086.3,4086.1,3.02213282]
[1761623445931,0.7706,4086.2,4086.1,1.26375799]
[1761623446431,41.5706,4086.2,4086.1,1.26375799]
[1761623446620,42.01111,4086.2,4086.1,0.0030763]
[1761623447427,0.7706,4085.1,4085.0,3.58283282]
[1761623447634,0.7706,4085.1,4085.0,1.82445799]
[1761623447835,0.7706,4085.1,4085.0,2.26509799]
[1761623448223,0.7706,4085.1,4085.0,2.48499799]
[1761623448528,0.7706,4085.4,4085.3,0.7806]
[1761623448732,0.7706,4085.4,4085.3,1.47705799]
[1761623448931,0.77325638,4085.4,4085.3,1.26375799]
[1761623449143,0.77325638,4085.4,4085.3,1.47705799]
[1761623450037,0.77325638,4085.4,4085.3,1.82445799]
[1761623450336,0.77325638,4085.4,4085.3,2.04435799]
[1761623452329,0.77325638,4085.4,4085.3,1.69695799]
[1761623452729,0.77325638,4085.4,4085.3,1.47705799]
[1761623453439,0.77325638,4085.4,4085.3,2.48496799]
[1761623454537,0.00265638,4085.4,4085.3,2.48496799]
[1761623454736,0.00265638,4085.4,4085.3,2.04435799]
[1761623454935,0.55115638,4085.4,4085.3,2.04435799]
[1761623455135,0.7706,4085.2,4085.1,0.3474]
[1761623455331,0.7706,4085.2,4085.1,0.2133]
[1761623455536,0.7706,4085.2,4085.1,1.22122]
[1761623456339,0.5485,4085.2,4085.1,1.22122]
[1761623456534,0.55115638,4085.4,4085.3,1.2212]
[1761623456942,0.00265638,4085.4,4085.3,1.2212]
[1761623460449,40.8,4086.2,4086.1,0.3474]
[1761623460635,0.5485,4086.5,4086.4,1.22109]
[1761623461041,41.3735,4086.5,4086.4,1.26375799]
[1761623461235,41.3735,4086.5,4086.1,0.3474]
[1761623461549,0.4402,4086.3,4086.2,1.26375799]
[1761623461741,0.7706,4086.3,4086.2,1.26375799]
[1761623461940,0.5485,4086.3,4086.2,2.48486799]
[1761623462145,40.80248084,4086.5,4086.4,1.22109]
[1761623462537,41.13288084,4086.5,4086.4,0.7806]
[1761623462743,41.26618084,4086.5,4086.4,1.22109]
[1761623462946,40.80248084,4086.5,4086.4,1.22109]
[1761623463846,41.13288084,4086.5,4086.4,1.22109]
[1761623464546,40.80248084,4086.5,4086.4,1.22109]
[1761623464745,0.7646,4087.3,4087.2,0.8689]
[1761623464939,0.3362,4087.6,4087.5,0.44037]
[1761623465141,0.5475,4087.9,4087.8,0.756]
[1761623465347,0.8971,4087.5,4087.4,1.26375799]
[1761623465546,0.8971,4087.5,4087.4,1.47445799]
[1761623465750,40.80291261,4087.5,4087.4,2.01975799]
[1761623465946,41.27161261,4087.5,4087.4,0.4285]
[1761623466149,41.27161261,4087.5,4087.4,0.7743]
[1761623466648,41.13911261,4087.5,4087.4,0.7743]
[1761623466850,40.80291261,4087.5,4087.4,0.7743]
[1761623467044,0.00291261,4087.5,4087.4,0.7743]
[1761623467551,40.80291261,4087.5,4087.4,0.7743]
[1761623468253,41.13501261,4087.5,4087.4,0.7743]
[1761623468753,0.00291261,4087.5,4087.4,0.7743]
[1761623469763,0.56521261,4087.5,4087.4,0.7743]
[1761623470053,0.77991261,4087.5,4087.4,0.7743]
[1761623470453,0.56521261,4087.5,4087.4,0.7743]
[1761623470650,0.00291261,4087.5,4087.4,0.7743]
[1761623471352,0.00291261,4087.5,4087.4,1.21468]
[1761623472156,0.3321,4088.4,4088.0,0.1378]
[1761623472354,0.777,4088.8,4088.7,0.7851]
[1761623472545,0.1263,4088.5,4088.3,2.27803799]
[1761623472749,0.2302,4088.4,4088.3,2.48913799]
[1761623472951,0.4449,4088.7,4088.6,0.7851]
[1761623473153,0.23331573,4088.7,4088.6,0.78756132]
[1761623473352,0.00311573,4088.7,4088.6,0.78756132]
[1761623473663,0.23331573,4088.7,4088.6,0.78756132]
[1761623473855,0.23331573,4088.7,4088.6,2.28066655]
[1761623474159,0.00311573,4088.7,4088.6,2.28066655]
[1761623474461,40.80311573,4088.7,4088.6,2.28066655]
[1761623475555,0.00311573,4088.7,4088.6,2.28066655]
[1761623476457,40.8,4089.2,4089.1,1.22529]
[1761623476649,0.2302,4089.8,4089.7,0.7851]
[1761623476853,0.2302,4089.8,4089.7,0.4393]
[1761623476854,0.4449,4089.8,4089.7,0.4393]
[1761623477052,41.577,4089.8,4089.7,0.4393]
[1761623477760,41.57973361,4089.8,4089.7,0.4393]
[1761623478259,41.57973361,4089.8,4089.7,0.7851]
[1761623478450,41.57973361,4089.8,4089.4,4.02906032]
[1761623478761,0.4449,4088.8,4088.7,0.2282]
[1761623478961,0.777,4088.8,4088.7,0.2282]
[1761623479661,0.777,4088.8,4088.7,0.7851]
[1761623480056,0.777,4088.8,4088.7,0.4393]
[1761623481251,0.777,4088.8,4088.7,0.7851]
[1761623481446,0.3321,4089.1,4088.7,0.4393]
[1761623481653,0.3565,4089.5,4089.2,0.3458]
[1761623481856,0.9033,4089.5,4089.4,0.7851]
[1761623482065,0.9033,4089.5,4089.4,0.2282]
[1761623484862,0.777,4089.2,4089.1,0.2282]
[1761623485055,0.777,4089.1,4089.0,3.68326032]
[1761623485251,0.3321,4089.0,4088.7,0.574]
[1761623485452,0.777,4088.8,4088.7,1.22533]
[1761623486559,0.777,4088.8,4088.7,0.4393]
[1761623486764,0.777,4088.8,4088.7,0.2282]
[1761623487762,1.21724,4088.7,4088.6,0.00246132]
[1761623488263,41.577,4088.7,4088.6,0.78756132]
[1761623488768,41.577,4088.7,4088.6,0.00246132]
[1761623488963,41.577,4088.7,4088.6,0.44176132]
[1761623489165,41.577,4088.7,4088.6,0.78756132]
[1761623489371,40.8,4088.7,4088.6,1.22781132]
[1761623489560,41.1321,4088.7,4088.6,1.22781132]
[1761623490362,0.5623,4088.7,4088.6,1.22781132]
[1761623490566,0.5623,4088.9,4088.8,0.87953]
[1761623490967,41.3623,4088.9,4088.8,0.87953]
[1761623491167,41.3623,4088.9,4088.8,1.22533]
[1761623491856,41.3623,4088.9,4088.8,0.2282]
[1761623492058,0.777,4088.7,4088.6,0.00246132]
[1761623492464,0.777,4088.7,4088.6,0.23066132]
[1761623493272,0.777,4088.7,4088.6,0.78756132]
[1761623493273,0.5623,4088.7,4088.6,0.78756132]
[1761623493465,0.777,4088.7,4088.6,0.78756132]
[1761623494460,0.777,4088.7,4088.6,0.44176132]
[1761623494869,0.777,4088.7,4088.6,0.88201132]
[1761623496166,0.5623,4088.7,4088.6,1.22931132]
[1761623496476,0.2302,4088.7,4088.6,1.22931132]
[1761623497472,40.8,4088.9,4088.8,1.23783]
[1761623497473,41.1297,4088.9,4088.8,1.23783]
[1761623498166,40.8,4088.9,4088.8,1.23783]
[1761623498374,0.5564,4089.2,4089.1,0.7976]
[1761623498572,0.2267,4089.2,4089.1,0.7976]